fUST/lending_fUST_20260412
["ID","MTS","AMOUNT","RATE_DAILY","PERIOD"]
[420314143,1775953846926,-500.0,0.00015469,2]
[420314146,1775953846944,-500.0,0.00015469,2]
[420314148,1775953846970,-66398.5120181,0.0001547,2]
[420314150,1775953847000,-25849.86678596,0.0001547,2]
[420314164,1775953847299,-7980.32861818,0.0001547,2]
[420314166,1775953847322,-27568.79489578,0.0001547,2]
[420314169,1775953847336,-713318.41470411,0.0001547,2]
[420314171,1775953847348,-160.0,0.00015542,2]
[420314173,1775953847366,-500.0,0.00015569,2]
[420314175,1775953847375,-500.0,0.00015569,2]
[420314177,1775953847384,-500.0,0.00015569,2]
[420314179,1775953847400,-399.782,0.0001557,2]
[420314181,1775953847415,-500.0,0.00015571,2]
[420314183,1775953847426,-500.0,0.00015571,2]
[420314185,1775953847444,-500.0,0.00015571,2]
[420314187,1775953847458,-500.0,0.00015571,2]
[420314190,1775953847470,-500.0,0.00015571,2]
[420314192,1775953847482,-500.0,0.00015571,2]
[420314194,1775953847496,-500.0,0.00015571,2]
[420314196,1775953847508,-500.0,0.00015571,2]
[420314199,1775953847524,-500.0,0.00015571,2]
[420314201,1775953847535,-500.0,0.00015571,2]
[420314203,1775953847547,-500.0,0.00015571,2]
[420314205,1775953847561,-453.59992254,0.00015571,2]
[420314208,1775953847573,-685.79,0.00015572,2]
[420314210,1775953847585,-685.79,0.00015572,2]
[420314212,1775953847597,-685.79,0.00015572,2]
[420314215,1775953847614,-685.79,0.00015572,2]
[420314217,1775953847625,-685.79,0.00015572,2]
[420314219,1775953847636,-685.79,0.00015572,2]
[420314222,1775953847653,-685.79,0.00015572,2]
[420314224,1775953847665,-685.79,0.00015572,2]
[420314226,1775953847678,-685.79,0.00015572,2]
[420314228,1775953847690,-685.79,0.00015572,2]
[420314231,1775953847707,-685.79,0.00015572,2]
[420314233,1775953847719,-1244.42,0.00015572,2]
[420314235,1775953847728,-500.0,0.00015573,2]
[420314237,1775953847737,-483.37708546,0.00015573,2]
[420314239,1775953847748,-504.57204641,0.00015573,2]
[420314241,1775953847761,-500.0,0.00015573,2]
[420314243,1775953847770,-500.0,0.00015573,2]
[420314245,1775953847782,-500.0,0.00015573,2]
[420314247,1775953847791,-500.0,0.00015573,2]
[420314249,1775953847806,-267.41,0.00015663,3]
[420314251,1775953847818,-53177.2249501,0.00015673,2]
[420314253,1775953847829,-1530.4717565,0.00015673,2]
[420314255,1775953847838,-18754.2797258,0.00015673,2]
[420314258,1775953847859,-151.0,0.000157,2]
[420314260,1775953847869,-151.0,0.000158,2]
[420314262,1775953847879,-1500.0,0.00015867,2]
[420314263,1775953847897,-381.17042381,0.00015867,2]
[420314266,1775953847910,-500.0,0.00015867,2]
[420314267,1775953847921,-1003.30561248,0.00015867,2]
[420314270,1775953847940,-1500.0,0.00015867,2]
[420314271,1775953847955,-502.57896594,0.00015867,2]
[420314274,1775953847971,-151.0,0.000159,2]
[420314276,1775953847994,-382.44011602,0.00016071,2]
[420314278,1775953848022,-1120.59682202,0.00016071,2]
[420315878,1775954222079,300.0,9.999e-05,2]
[420315879,1775954402510,34.67,2e-05,2]
[420315880,1775954402538,119.39,2e-05,2]
[420315896,1775954971183,-154.06,3.5e-05,2]
[420315897,1775954971205,-154.45133904,3.875e-05,2]
[420315898,1775954971235,-154.06,5e-05,2]
[420315899,1775954971263,-182.25258006,5.875e-05,2]
[420315900,1775954971284,-210.05382109,7.875e-05,2]
[420315901,1775954971311,-239.78225981,7.94e-05,2]
[420315920,1775955032407,-60.21774019,7.94e-05,2]
[420315921,1775955032417,-402.0,7.94e-05,2]
[420315922,1775955032426,-237.85506212,9.875e-05,2]
[420315923,1775955032436,-300.0,9.999e-05,2]
[420315925,1775955032449,-14161.81189259,0.0001,2]
[420315927,1775955032461,-7190.09897623,0.0001,2]
[420315929,1775955032477,-778.05568803,0.0001,2]
[420315931,1775955032488,-619.55233372,0.0001,2]
[420315932,1775955032508,-1343.7500641,0.0001,2]
[420315933,1775955032524,-769.69861398,0.0001,2]
[420315935,1775955032537,-393.50882395,0.0001,2]
[420316016,1775955038675,-2070.4112621,0.0001,2]
[420316018,1775955038686,-244.17448053,0.0001,2]
[420316020,1775955038698,-4034.82318303,0.0001,2]
[420316022,1775955038711,-373.31955435,0.0001,2]
[420316025,1775955038737,-609.721,0.0001,2]
[420316035,1775955038871,-1925.81703556,0.0001,2]
[420316084,1775955043755,-387.05978138,0.0001,2]
[420316085,1775955043768,-300.0,0.00010199,2]
[420316086,1775955043793,-300.0,0.00010199,2]
[420316087,1775955043807,-300.0,0.00010199,2]
[420316088,1775955043820,-300.0,0.00010199,2]
[420316089,1775955043847,-300.0,0.00010199,2]
[420316090,1775955043863,-300.0,0.00010199,2]
[420316091,1775955043890,-300.0,0.00010199,2]
[420316092,1775955043903,-300.0,0.00010199,2]
[420316093,1775955043934,-300.0,0.00010199,2]
[420316094,1775955043967,-300.0,0.00010199,2]
[420316095,1775955043979,-165.36021862,0.00010199,2]
[420316098,1775955044009,-134.63978138,0.00010199,2]
[420316099,1775955044033,-300.0,0.00010199,2]
[420316100,1775955044050,-300.0,0.00010199,2]
[420316101,1775955044060,-300.0,0.00010199,2]
[420316102,1775955044079,-300.0,0.00010199,2]
[420316103,1775955044089,-265.65630314,0.00011875,2]
[420316104,1775955044099,-319.826,0.000125,2]
[420316105,1775955044112,-160.0,0.00013693,2]
[420316106,1775955044126,-42.00090433,0.00013699,2]
[420316113,1775955046773,-129.51708767,0.00013699,2]
[420316114,1775955046787,-1000.0,0.00013699,2]
[420316115,1775955046798,-293.45754417,0.00013875,2]
[420316116,1775955046814,-3878.12123,0.00014,2]
[420316117,1775955046834,-409.16364207,0.00014145,2]
[420316118,1775955046843,-3438.51908317,0.00014145,2]
[420316119,1775955046858,-584.79701649,0.00014145,2]
[420316120,1775955046871,-2336.8488779,0.00014145,2]
[420316121,1775955046881,-552.2810811,0.00014521,2]
[420316122,1775955046891,-249.42,0.00014695,7]
[420316123,1775955046900,-3878.12123,0.00015,30]
[420316124,1775955046914,-3878.12123,0.00015,30]
[420316125,1775955046923,-3878.121232,0.00015,2]
[420316126,1775955046932,-160.0,0.00015,2]
[420316127,1775955046953,-537.6845,0.00015559,2]
[420316129,1775955046963,-162.380719,0.00015559,2]
[420316130,1775955046978,-1957.856,0.00015559,2]
[420316131,1775955046988,-537.6845,0.00015559,2]
[420316132,1775955046997,-2150.738,0.00015559,2]
[420316133,1775955047015,-156.587,0.00015559,2]
[420316134,1775955047025,-557.5788265,0.00015614,2]
[420316135,1775955047034,-578.20924308,0.00015669,2]
[420316136,1775955047053,-158.6362203,0.00015673,2]
[420316137,1775955047074,-633.91033631,0.00015673,2]
[420316138,1775955047084,-600.0,0.00015675,2]
[420316139,1775955047093,-599.60298507,0.00015724,2]
[420316140,1775955047106,-500.0,0.00015768,2]
[420316141,1775955047122,-500.0,0.00015768,2]
[420316143,1775955047131,-489.92543658,0.00015768,2]
[420316145,1775955047142,-500.0,0.00015768,2]
[420316147,1775955047174,-500.0,0.00015768,2]
[420316149,1775955047183,-500.0,0.00015768,2]
[420316152,1775955047203,-500.0,0.00015768,2]
[420316154,1775955047229,-614.89338021,0.00015768,2]
[420316156,1775955047239,-500.0,0.00015768,2]
[420316157,1775955047262,-500.0,0.00015768,2]
[420316160,1775955047291,-500.0,0.00015768,2]
[420316162,1775955047386,-500.0,0.00015768,2]
[420316164,1775955047408,-500.0,0.00015768,2]
[420316167,1775955047419,-500.0,0.00015768,2]
[420316169,1775955047430,-500.0,0.00015768,2]
[420316171,1775955047447,-500.0,0.00015768,2]
[420316174,1775955047468,-500.0,0.00015768,2]
[420316176,1775955047480,-500.0,0.00015768,2]
[420316178,1775955047500,-3723.48805551,0.0001577,2]
[420316180,1775955047523,-3811.73214744,0.0001577,2]
[420316198,1775955687071,-149.58952535,0.0001,2]
[420316199,1775955687141,-1614.92032158,0.0001,2]
[420316293,1775956233284,-300.0,9.999e-05,2]
[420316295,1775956233293,-88.02580248,9.999e-05,2]
[420316297,1775956233305,-211.97419752,9.999e-05,2]
[420316299,1775956233329,-300.0,9.999e-05,2]
[420316301,1775956233338,-300.0,9.999e-05,2]
[420316303,1775956233356,-1200.0,9.999e-05,2]
[420316305,1775956233365,-210.040139,0.0001,2]
[420316307,1775956233375,-195.6779036,0.0001,2]
[420316309,1775956233386,-421.98808858,0.0001,2]
[420316311,1775956233402,-334.05214239,0.0001,2]
[420316313,1775956233414,-205.15260814,0.0001,2]
[420316315,1775956233428,-2156.47859896,0.00010199,2]
[420316317,1775956233440,-300.0,0.00010199,2]
[420316319,1775956233454,-300.0,0.00010199,2]
[420316321,1775956233466,-300.0,0.00010199,2]
[420316323,1775956233482,-300.0,0.00010199,2]
[420316325,1775956233497,-300.0,0.00010199,2]
[420316327,1775956233509,-300.0,0.00010199,2]
[420316329,1775956233526,-300.0,0.00010199,2]
[420316331,1775956233541,-300.0,0.00010199,2]
[420316333,1775956233553,-300.0,0.00010199,2]
[420316335,1775956233570,-300.0,0.00010199,2]
[420316338,1775956233595,-300.0,0.00010199,2]
[420316340,1775956233604,-300.0,0.00010199,2]
[420316341,1775956233620,-300.0,0.00010199,2]
[420316344,1775956233633,-300.0,0.00010199,2]
[420316346,1775956233644,-205.15260814,0.000103,2]
[420316348,1775956233667,-205.15260814,0.000106,2]
[420316350,1775956233678,-151.0,0.000108,2]
[420316352,1775956233697,-205.15260814,0.000108,2]
[420316354,1775956233725,-300.0,0.00010999,2]
[420316356,1775956233768,-420.0,0.00010999,2]
[420316357,1775956233797,-420.0,0.00010999,2]
[420316359,1775956233806,-420.0,0.00010999,2]
[420316361,1775956233819,-1680.0,0.00010999,2]
[420316363,1775956233855,-205.15260814,0.00011,30]
[420316365,1775956233865,-168.47396447,0.00011645,2]
[420316367,1775956233874,-213.54,0.00011791,2]
[420316369,1775956233901,-229.27,0.00011867,2]
[420316371,1775956233911,-250.71,0.00011971,2]
[420316374,1775956233935,-276.97,0.0001207,2]
[420316376,1775956233945,-587.0,0.00012099,2]
[420316377,1775956233956,-587.0,0.00012099,2]
[420316380,1775956233971,-283.0,0.00012099,2]
[420316382,1775956233986,-2351.0,0.00012099,2]
[420316383,1775956233995,-177.0,0.000121,2]
[420316386,1775956234005,-1796.29272508,0.00012379,2]
[420316388,1775956234018,-1322.47392052,0.00012379,2]
[420316390,1775956234033,-430.11616818,0.00013309,2]
[420316637,1775956239153,-392.88383182,0.00013309,2]
[420316639,1775956239170,-2136.0,0.00013309,2]
[420316641,1775956239207,-151.0,0.000135,2]
[420316643,1775956239217,-1000.0,0.00013699,2]
[420316646,1775956239235,-1000.0,0.00013699,2]
[420316648,1775956239245,-204.0,0.000141,2]
[420316650,1775956239255,-497.85052505,0.00014142,2]
[420316652,1775956239265,-904.256505,0.00014264,2]
[420316654,1775956239281,-600.0,0.00014548,2]
[420316656,1775956239291,-151.0,0.0001458,2]
[420316658,1775956239301,-904.256505,0.00014864,2]
[420316660,1775956239312,-2854.46153162,0.00014982,2]
[420316676,1775956239486,-451.0,0.00015,2]
[420316679,1775956239507,-897.0,0.00015,2]
[420316680,1775956239517,-255.861,0.00015068,2]
[420316681,1775956239538,-191.197534,0.00015068,2]
[420316683,1775956239548,-229.30900222,0.00015083,2]
[420316685,1775956239558,-13237.5266804,0.00015084,2]
[420316686,1775956239575,-1147.8538174,0.00015084,2]
[420316687,1775956239585,-2806.04639998,0.00015084,2]
[420316688,1775956239597,-1214.92678742,0.00015084,2]
[420316689,1775956239618,-7798.67168172,0.0001522,2]
[420316690,1775956239640,-4681.54622423,0.0001522,2]
[420316691,1775956239657,-16756.17105436,0.0001522,2]
[420316692,1775956239667,-172.37684368,0.0001522,2]
[420316693,1775956239677,-500.0,0.00015319,2]
[420316694,1775956239692,-500.0,0.00015319,2]
[420316695,1775956239702,-506.60078835,0.00015319,2]
[420316696,1775956239711,-500.0,0.00015319,2]
[420316697,1775956239726,-500.0,0.00015319,2]
[420316698,1775956239735,-163.74349125,0.00015319,2]
[420316699,1775956239746,-500.0,0.00015319,2]
[420316700,1775956239760,-141.70147144,0.00015319,2]
[420316768,1775956241524,-500.0,0.0001508,2]
[420316770,1775956241553,-500.0,0.0001508,2]
[420316782,1775956243978,-22.33919429,0.0001508,2]
[420316809,1775956246869,-477.66080571,0.0001508,2]
[420316811,1775956246889,-500.0,0.0001508,2]
[420316813,1775956246898,-500.0,0.0001508,2]
[420316815,1775956246908,-500.0,0.0001508,2]
[420316817,1775956246920,-500.0,0.0001508,2]
[420316819,1775956246932,-500.0,0.0001508,2]
[420316821,1775956246943,-307.61973999,0.0001508,2]
[420316823,1775956246953,-378.75789476,0.0001508,2]
[420316825,1775956246971,-500.0,0.0001508,2]
[420316827,1775956246982,-500.0,0.0001508,2]
[420316829,1775956246991,-500.0,0.0001508,2]
[420316831,1775956247005,-500.0,0.0001508,2]
[420316833,1775956247016,-500.0,0.0001508,2]
[420316835,1775956247036,-500.0,0.0001508,2]
[420316837,1775956247049,-500.0,0.0001508,2]
[420316839,1775956247059,-500.0,0.0001508,2]
[420316841,1775956247072,-270.77332162,0.0001508,2]
[420316843,1775956247092,-500.0,0.0001508,2]
[420316845,1775956247102,-500.0,0.0001508,2]
[420316847,1775956247115,-500.0,0.0001508,2]
[420316849,1775956247139,-500.0,0.0001508,2]
[420316852,1775956247151,-500.0,0.0001508,2]
[420316854,1775956247165,-500.0,0.0001508,2]
[420316855,1775956247202,-500.0,0.0001508,2]
[420316858,1775956247214,-500.0,0.0001508,2]
[420316859,1775956247229,-500.0,0.0001508,2]
[420316862,1775956247268,-500.0,0.0001508,2]
[420316864,1775956247282,-296.37460354,0.0001508,2]
[420316865,1775956247302,-500.0,0.0001508,2]
[420316868,1775956247313,-500.0,0.0001508,2]
[420316870,1775956247326,-500.0,0.0001508,2]
[420316872,1775956247343,-500.0,0.0001508,2]
[420316874,1775956247365,-500.0,0.0001508,2]
[420316876,1775956247375,-500.0,0.0001508,2]
[420316877,1775956247384,-500.0,0.0001508,2]
[420316880,1775956247403,-500.0,0.0001508,2]
[420316882,1775956247412,-500.0,0.0001508,2]
[420316883,1775956247423,-451.0,0.00015319,2]
[420316884,1775956247442,-358.29852856,0.00015319,2]
[420316885,1775956247452,-500.0,0.00015319,2]
[420316886,1775956247462,-191.5122946,0.00015319,2]
[420316887,1775956247477,-500.0,0.00015319,2]
[420316888,1775956247491,-500.0,0.00015319,2]
[420316889,1775956247502,-500.0,0.00015319,2]
[420316890,1775956247511,-500.0,0.00015319,2]
[420316891,1775956247526,-500.0,0.00015319,2]
[420316892,1775956247543,-449.4143978,0.00015319,5]
[420316893,1775956247553,-168.38880564,0.0001532,2]
[420316894,1775956247563,-537.6845,0.0001532,2]
[420316895,1775956247582,-151.0,0.0001532,2]
[420316896,1775956247596,-537.6845,0.0001532,2]
[420316897,1775956247610,-2150.738,0.0001532,2]
[420316898,1775956247619,-455.5409187,0.00015355,2]
[420316899,1775956247632,-557.5788265,0.00015375,2]
[420316900,1775956247642,-300.0,0.00015381,2]
[420316901,1775956247658,-300.0,0.00015381,2]
[420316902,1775956247670,-300.0,0.00015381,2]
[420316903,1775956247684,-300.0,0.00015381,2]
[420316904,1775956247698,-5546.74286258,0.00015413,2]
[420317170,1775957361172,-241.58722608,0.0001,2]
[420317171,1775957361206,-93.08561383,0.0001,2]
[420317186,1775957432057,-152.0,0.00011715,7]
[420317188,1775957432070,-151.0,0.000135,2]
[420317190,1775957432101,-151.0,0.000135,2]
[420317192,1775957432112,-430.51798206,0.00013699,2]
[420317195,1775957432137,-569.48201794,0.00013699,2]
[420317197,1775957432149,-177.0,0.0001375,2]
[420317199,1775957432187,-261.163975,0.00014581,2]
[420317201,1775957432209,-1633.32670179,0.00014696,2]
[420317258,1775957438351,-3385.76731894,0.00014696,2]
[420317260,1775957438365,-1611.75516979,0.0001522,3]
[420317262,1775957438377,-300.0,0.0001522,2]
[420317264,1775957438389,-537.6845,0.00015221,2]
[420317266,1775957438401,-2150.738,0.00015221,2]
[420317268,1775957438415,-535.69201324,0.00015228,2]
[420317270,1775957438426,-18499.0,0.00015229,5]
[420317272,1775957438438,-2689.4016008,0.0001523,2]
[420317274,1775957438470,-3280.2475435,0.0001523,2]
[420317276,1775957438492,-3441.4113136,0.0001523,2]
[420317278,1775957438507,-1097.3928581,0.0001523,2]
[420317280,1775957438540,-160.0,0.00015242,2]
[420317282,1775957438568,-557.5788265,0.00015276,2]
[420317284,1775957438578,-3695.06727558,0.00015311,2]
[420317286,1775957438602,-1414.46122354,0.00015311,2]
[420317288,1775957438615,-578.20924308,0.00015331,2]
[420317290,1775957438625,-454.8133473,0.00015342,2]
[420317292,1775957438647,-168.0,0.0001535,2]
[420317294,1775957438659,-599.60298507,0.00015386,2]
[420317296,1775957438670,-157.4863527,0.00015401,2]
[420317298,1775957438681,-500.0,0.00015401,2]
[420317300,1775957438695,-512.54237239,0.00015401,2]
[420317303,1775957438705,-500.0,0.00015401,2]
[420317306,1775957438716,-500.0,0.00015401,2]
[420317310,1775957438733,-506.49792802,0.00015401,2]
[420317313,1775957438743,-500.0,0.00015401,2]
[420317317,1775957438753,-500.0,0.00015401,2]
[420317319,1775957438763,-500.0,0.00015401,2]
[420317321,1775957438780,-500.0,0.00015401,2]
[420317323,1775957438797,-500.0,0.00015401,2]
[420317325,1775957438807,-500.0,0.00015401,2]
[420317327,1775957438820,-500.0,0.00015401,2]
[420317329,1775957438846,-500.0,0.00015401,2]
[420317331,1775957438873,-500.0,0.00015401,2]
[420317332,1775957438883,-500.0,0.00015401,2]
[420317333,1775957438894,-500.0,0.00015401,2]
[420317334,1775957438918,-500.0,0.00015401,2]
[420317335,1775957438928,-500.0,0.00015401,2]
[420317336,1775957438960,-500.0,0.00015401,2]
[420317337,1775957438972,-500.0,0.00015401,2]
[420317338,1775957438995,-500.0,0.00015401,2]
[420317339,1775957439008,-510.27108914,0.00015401,2]
[420317340,1775957439026,-500.0,0.00015401,2]
[420317341,1775957439057,-500.0,0.00015401,2]
[420317342,1775957439070,-500.0,0.00015401,2]
[420317343,1775957439107,-250.0,0.00015401,2]
[420317344,1775957439120,-500.0,0.00015401,2]
[420317345,1775957439144,-500.0,0.00015401,2]
[420317346,1775957439159,-1758.62,0.00015402,3]
[420317347,1775957439184,-1083.81,0.00015402,3]
[420317348,1775957439195,-903.18,0.00015402,3]
[420317349,1775957439217,-451.59,0.00015402,3]
[420317350,1775957439229,-225.79,0.00015402,3]
[420317351,1775957439241,-677.4,0.00015402,3]
[420317352,1775957439257,-171.497041,0.00015403,2]
[420317353,1775957439268,-500.0,0.0001541,2]
[420317354,1775957439280,-540.66586577,0.0001541,2]
[420317355,1775957439291,-500.0,0.0001541,2]
[420317356,1775957439302,-500.0,0.0001541,2]
[420317357,1775957439317,-500.0,0.0001541,2]
[420317358,1775957439330,-500.0,0.0001541,2]
[420317359,1775957439340,-500.0,0.0001541,2]
[420317360,1775957439356,-500.0,0.0001541,2]
[420317361,1775957439371,-500.0,0.0001541,2]
[420317362,1775957439381,-500.0,0.0001541,2]
[420317363,1775957439393,-500.0,0.0001541,2]
[420317364,1775957439405,-500.0,0.0001541,2]
[420317365,1775957439422,-500.0,0.0001541,2]
[420317366,1775957439434,-500.0,0.0001541,2]
[420317367,1775957439447,-500.0,0.0001541,2]
[420317368,1775957439462,-500.0,0.0001541,2]
[420317369,1775957439477,-500.0,0.0001541,2]
[420317370,1775957439490,-500.0,0.0001541,2]
[420317371,1775957439519,-198.22076527,0.0001541,2]
[420317372,1775957439530,-500.0,0.0001541,2]
[420317373,1775957439562,-500.0,0.0001541,2]
[420317374,1775957439593,-186.72111504,0.0001541,2]
[420317375,1775957439624,-500.0,0.0001541,2]
[420317376,1775957439645,-500.0,0.0001541,2]
[420317377,1775957439656,-500.0,0.0001541,2]
[420317378,1775957439667,-2270.68048386,0.0001541,2]
[420317379,1775957439680,-2270.68048386,0.0001541,2]
[420317380,1775957439691,-500.0,0.0001541,2]
[420317381,1775957439701,-2270.68048386,0.0001541,2]
[420317382,1775957439711,-500.0,0.0001541,2]
[420317383,1775957439723,-2270.68048386,0.0001541,2]
[420317384,1775957439733,-2270.68048386,0.0001541,2]
[420317385,1775957439745,-2270.68048386,0.0001541,2]
[420317386,1775957439761,-500.0,0.0001541,2]
[420317387,1775957439772,-2270.68048386,0.0001541,2]
[420317388,1775957439785,-500.0,0.0001541,2]
[420317389,1775957439797,-500.0,0.0001541,2]
[420317390,1775957439807,-500.0,0.0001541,2]
[420317391,1775957439820,-2270.68048386,0.0001541,2]
[420317392,1775957439831,-500.0,0.0001541,2]
[420317393,1775957439854,-2270.68048386,0.0001541,2]
[420317394,1775957439866,-2270.68048386,0.0001541,2]
[420317395,1775957439890,-247.66514706,0.0001541,2]
[420317396,1775957439903,-500.0,0.0001541,2]
[420317397,1775957439916,-2270.68048386,0.0001541,2]
[420317398,1775957439951,-2172.28432956,0.0001541,2]
[420317399,1775957439964,-2172.28432956,0.0001541,2]
[420317400,1775957439975,-2172.28432956,0.0001541,2]
[420317401,1775957439995,-2606.74119546,0.0001541,2]
[420317402,1775957440011,-500.0,0.00015411,2]
[420317403,1775957440022,-204.689,0.00015411,2]
[420317404,1775957440057,-125078.4198265,0.00015412,2]
[420317405,1775957440119,-27093.57086457,0.00015412,2]
[420317409,1775957441080,-5420.1902081,0.00015412,2]
[420317417,1775957443786,-28610.48739404,0.00015412,2]
[420317418,1775957443839,-3871.1214413,0.00015412,2]
[420317424,1775957446280,-2213.92499483,0.00015412,2]
[420317425,1775957446299,-4576.42500537,0.00015412,2]
[420317426,1775957446308,-621.78829552,0.00015441,2]
[420317427,1775957446326,-904.256505,0.00015465,2]
[420317428,1775957446336,-168.0,0.00015484,2]
[420317429,1775957446354,-644.79446246,0.00015496,2]
[420317430,1775957446364,-300.0,0.00015523,2]
[420317431,1775957446374,-160.0,0.00015536,3]
[420317432,1775957446390,-160.0,0.00015536,5]
[420317433,1775957446408,-668.65185757,0.00015551,2]
[420317434,1775957446418,-668.13220609,0.00015572,2]
[420317435,1775957446428,-2669.85629552,0.00015572,2]
[420317436,1775957446446,-631.28643002,0.00015572,2]
[420317437,1775957446467,-2522.62057434,0.00015572,2]
[420317438,1775957446478,-160.0,0.00015578,2]
[420317439,1775957446494,-168.0,0.00015593,2]
[420317440,1775957446508,-693.3919763,0.00015606,2]
[420317441,1775957446520,-168.0,0.00015621,2]
[420317442,1775957446532,-46.26774792,0.00015637,2]
[420317443,1775957446565,-121.73225208,0.00015637,2]
[420317444,1775957446577,-501.92792645,0.00015661,2]
[420317445,1775957446597,-500.0,0.00015685,2]
[420317446,1775957446607,-600.0,0.00015711,2]
[420317447,1775957446623,-168.0,0.00015721,2]
[420317448,1775957446633,-204.0,0.0001575,2]
[420317449,1775957446647,-1736.07318617,0.00015769,2]
[420317450,1775957446662,-494.24211983,0.00015769,2]
[420317451,1775957446685,-205.8,0.00015855,2]
[420317452,1775957446695,-168.0,0.00015938,2]
[420317453,1775957446707,-796.0,0.00015944,2]
[420317454,1775957446726,-500.0,0.00015959,2]
[420317455,1775957446739,-796.0,0.00015963,2]
[420317456,1775957446750,-789.0,0.00016,2]
[420317457,1775957446779,-796.0,0.00016029,2]
[420317458,1775957446789,-796.0,0.00016044,2]
[420317459,1775957446802,-904.256505,0.00016065,2]
[420317460,1775957446829,-796.0,0.00016084,2]
[420317461,1775957446842,-796.0,0.00016098,2]
[420317462,1775957446879,-691.21668629,0.00016111,2]
[420317463,1775957446932,-104.78331371,0.00016111,2]
[420317464,1775957446983,-263.41128629,0.00016233,2]
[420317465,1775957447070,-236.58871371,0.00016233,2]
[420317466,1775957447105,-796.0,0.00016237,2]
[420317467,1775957447140,-422.0,0.0001629,2]
[420317468,1775957447154,-1265.0,0.0001629,2]
[420317469,1775957447172,-288.69262093,0.00016311,2]
[420317470,1775957447190,-507.30737907,0.00016311,2]
[420317471,1775957447218,-223.26172361,0.00016317,2]
[420317472,1775957447230,-796.0,0.00016346,2]
[420317473,1775957447249,-796.0,0.00016412,2]
[420317474,1775957447261,-202.0,0.00016438,2]
[420317475,1775957447274,-172.0,0.00016438,2]
[420317476,1775957447299,-1557.0,0.00016438,2]
[420317477,1775957447314,-796.0,0.00016457,2]
[420317478,1775957447348,-432.0,0.0001646,2]
[420317479,1775957447360,-288.0,0.0001646,2]
[420317480,1775957447381,-796.0,0.00016466,2]
[420317481,1775957447393,-500.0,0.00016507,2]
[420317482,1775957447410,-796.0,0.00016525,2]
[420317483,1775957447433,-796.0,0.00016542,2]
[420317484,1775957447442,-145.46903723,0.00016543,2]
[420317485,1775957447495,-5.53096277,0.00016543,2]
[420317486,1775957447512,-796.0,0.00016545,2]
[420317487,1775957447539,-168.0,0.00016567,2]
[420317488,1775957447551,-258.39490282,0.0001658,2]
[420317489,1775957447562,-796.0,0.00016584,2]
[420317490,1775957447584,-420.0,0.00016654,2]
[420317491,1775957447614,-904.256505,0.00016666,2]
[420317492,1775957447624,-645.0,0.00016672,2]
[420317493,1775957447645,-188.45977748,0.00016703,14]
[420317494,1775957447663,-3517.24,0.00016772,3]
[420317495,1775957447675,-1806.36,0.00016772,3]
[420317496,1775957447705,-903.18,0.00016772,3]
[420317497,1775957447717,-451.58,0.00016772,3]
[420317498,1775957447730,-160.0,0.00016772,3]
[420317499,1775957447742,-160.0,0.00016772,3]
[420317500,1775957447768,-500.0,0.00016781,2]
[420317501,1775957447778,-362.0,0.00016881,2]
[420317502,1775957447804,-1557.0,0.00016986,2]
[420317503,1775957447814,-151.0,0.00017027,2]
[420317504,1775957447839,-444.146,0.00017031,2]
[420317505,1775957447855,-751.97,0.00017031,2]